fUSD/lending_fUSD_20250109
["ID","MTS","AMOUNT","RATE_DAILY","PERIOD"]
[348306412,1736439061142,-508.09,0.00010619,2]
[348306413,1736439061151,-7877.4,0.00010619,2]
[348306414,1736439061160,-4372.42,0.00010619,2]
[348306415,1736439061170,-1110.03,0.00010619,2]
[348306416,1736439061180,-2899.54,0.00010619,2]
[348306417,1736439061189,-5532.17955536,0.00010619,2]
[348306418,1736439061203,-701.77993452,0.00010619,2]
[348306419,1736439061215,-440.62948638,0.00010619,2]
[348306420,1736439061228,-69.35102374,0.00010619,2]
[348306421,1736439061238,-420.57655626,0.00010619,2]
[348306422,1736439061250,-196.06344374,0.00010619,2]
[348306423,1736439061259,-500.0,0.00010619,2]
[348306424,1736439061269,-1400.52,0.00010619,2]
[348306425,1736439061279,-764.58,0.00010619,2]
[348306426,1736439061288,-524.59,0.00010619,2]
[348306427,1736439061298,-1406.64,0.00010619,2]
[348306428,1736439061308,-1645.73,0.00010619,2]
[348306429,1736439061320,-500.0,0.00010619,2]
[348306430,1736439061332,-1728.35,0.00010619,2]
[348306431,1736439061342,-150.0,0.00010619,2]
[348306432,1736439061353,-500.0,0.0001062,2]
[348306433,1736439061364,-500.0,0.0001062,2]
[348306434,1736439061378,-500.0,0.0001062,2]
[348306435,1736439061388,-500.0,0.0001062,2]
[348306436,1736439061398,-500.0,0.0001062,2]
[348306437,1736439061407,-500.0,0.0001062,2]
[348306438,1736439061417,-500.0,0.0001062,2]
[348306439,1736439061427,-500.0,0.0001062,2]
[348306440,1736439061436,-500.0,0.0001062,2]
[348306441,1736439061445,-500.0,0.0001062,2]
[348306442,1736439061455,-500.0,0.0001062,2]
[348306443,1736439061464,-500.0,0.0001062,2]
[348306444,1736439061473,-500.0,0.0001062,2]
[348306445,1736439061483,-500.0,0.0001062,2]
[348306446,1736439061492,-500.0,0.0001062,2]
[348306447,1736439061502,-500.0,0.0001062,2]
[348306448,1736439061512,-500.0,0.0001062,2]
[348306449,1736439061521,-500.0,0.0001062,2]
[348306450,1736439061531,-500.0,0.0001062,2]
[348306451,1736439061540,-500.0,0.0001062,2]
[348306452,1736439061549,-500.0,0.0001062,2]
[348306453,1736439061560,-500.0,0.0001062,2]
[348306454,1736439061569,-500.0,0.0001062,2]
[348306455,1736439061579,-500.0,0.0001062,2]
[348306456,1736439061588,-500.0,0.0001062,2]
[348306457,1736439061597,-500.0,0.0001062,2]
[348306458,1736439061607,-500.0,0.0001062,2]
[348306459,1736439061616,-500.0,0.0001062,2]
[348306460,1736439061627,-500.0,0.0001062,2]
[348306461,1736439061638,-500.0,0.0001062,2]
[348306462,1736439061648,-500.0,0.0001062,2]
[348306463,1736439061657,-500.0,0.0001062,2]
[348306464,1736439061667,-500.0,0.0001062,2]
[348306465,1736439061676,-500.0,0.0001062,2]
[348306466,1736439061686,-500.0,0.0001062,2]
[348306467,1736439061695,-500.0,0.0001062,2]
[348306468,1736439061704,-500.0,0.0001062,2]
[348306469,1736439061714,-500.0,0.0001062,2]
[348306470,1736439061727,-500.0,0.0001062,2]
[348306471,1736439061736,-500.0,0.0001062,2]
[348306472,1736439061746,-500.0,0.0001062,2]
[348306473,1736439061756,-500.0,0.0001062,2]
[348306474,1736439061766,-500.0,0.0001062,2]
[348306475,1736439061776,-500.0,0.0001062,2]
[348306476,1736439061786,-255.18079302,0.0001062,2]
[348306477,1736439061797,-500.0,0.0001062,2]
[348306478,1736439061807,-500.0,0.0001062,2]
[348306479,1736439061816,-500.0,0.0001062,2]
[348306480,1736439061827,-500.0,0.0001062,2]
[348306481,1736439061837,-500.0,0.0001062,2]
[348306482,1736439061848,-500.0,0.0001062,2]
[348306483,1736439061858,-500.0,0.0001062,2]
[348306484,1736439061871,-500.0,0.0001062,2]
[348306485,1736439061881,-500.0,0.0001062,2]
[348306486,1736439061891,-1362.15,0.0001062,2]
[348306487,1736439061901,-813.72,0.0001062,2]
[348306488,1736439061911,-500.0,0.0001062,2]
[348306489,1736439061920,-636.0,0.0001062,2]
[348306490,1736439061930,-500.0,0.0001062,2]
[348306491,1736439061941,-1459.79,0.0001062,2]
[348306492,1736439061950,-500.0,0.0001062,2]
[348306493,1736439061960,-984.2,0.0001062,2]
[348306494,1736439061969,-500.0,0.0001062,2]
[348306495,1736439061978,-500.0,0.0001062,2]
[348306496,1736439061989,-500.0,0.0001062,2]
[348306497,1736439061998,-682.39,0.0001062,2]
[348306498,1736439062008,-500.0,0.0001062,2]
[348306499,1736439062017,-500.0,0.0001062,2]
[348306500,1736439062027,-500.0,0.0001062,2]
[348306501,1736439062037,-500.0,0.0001062,2]
[348306502,1736439062046,-500.0,0.0001062,2]
[348306503,1736439062057,-500.0,0.0001062,2]
[348306504,1736439062068,-500.0,0.0001062,2]
[348306505,1736439062077,-652.59,0.0001062,2]
[348306506,1736439062087,-500.0,0.0001062,2]
[348306507,1736439062097,-500.0,0.0001062,2]
[348306508,1736439062107,-500.0,0.0001062,2]
[348306509,1736439062116,-500.0,0.0001062,2]
[348306510,1736439062130,-303.75,0.0001062,2]
[348306511,1736439062140,-500.0,0.0001062,2]
[348306512,1736439062150,-500.0,0.0001062,2]
[348306513,1736439062159,-582.65,0.0001062,2]
[348306514,1736439062169,-500.0,0.0001062,2]
[348306515,1736439062178,-500.0,0.0001062,2]
[348306516,1736439062189,-500.0,0.0001062,2]
[348306517,1736439062199,-500.0,0.0001062,2]
[348306518,1736439062208,-500.0,0.0001062,2]
[348306519,1736439062218,-500.0,0.0001062,2]
[348306520,1736439062227,-540.37,0.0001062,2]
[348306521,1736439062236,-500.0,0.0001062,2]
[348306522,1736439062246,-500.0,0.0001062,2]
[348306523,1736439062256,-500.0,0.0001062,2]
[348306524,1736439062266,-534.26,0.0001062,2]
[348306525,1736439062275,-500.0,0.0001062,2]
[348306526,1736439062284,-569.97,0.0001062,2]
[348306527,1736439062294,-500.0,0.0001062,2]
[348306528,1736439062303,-628.57,0.0001062,2]
[348306529,1736439062313,-500.0,0.0001062,2]
[348306530,1736439062322,-500.0,0.0001062,2]
[348306531,1736439062331,-681.21,0.0001062,2]
[348306532,1736439062340,-500.0,0.0001062,2]
[348306533,1736439062350,-657.74,0.0001062,2]
[348306534,1736439062359,-500.0,0.0001062,2]
[348306535,1736439062371,-500.0,0.0001062,2]
[348306536,1736439062380,-1169.44,0.0001062,2]
[348306537,1736439062390,-2249.46,0.0001062,2]
[348306538,1736439062399,-500.0,0.0001062,2]
[348306539,1736439062408,-777.4,0.0001062,2]
[348306540,1736439062417,-597.15,0.0001062,2]
[348306541,1736439062427,-500.0,0.0001062,2]
[348306542,1736439062436,-501.94,0.0001062,2]
[348306543,1736439062447,-500.0,0.0001062,2]
[348306544,1736439062457,-1347.15,0.0001062,2]
[348306545,1736439062466,-500.0,0.0001062,2]
[348306546,1736439062475,-523.94,0.0001062,2]
[348306547,1736439062485,-1612.65,0.0001062,2]
[348306548,1736439062495,-675.02,0.0001062,2]
[348306549,1736439062507,-500.0,0.0001062,2]
[348306550,1736439062516,-500.0,0.0001062,2]
[348306551,1736439062527,-1205.88,0.0001062,2]
[348306552,1736439062537,-500.0,0.0001062,2]
[348306553,1736439062547,-866.82,0.0001062,2]
[348306554,1736439062556,-500.0,0.0001062,2]
[348306555,1736439062565,-925.46,0.0001062,2]
[348306556,1736439062575,-500.0,0.0001062,2]
[348306557,1736439062584,-681.99,0.0001062,2]
[348306558,1736439062593,-607.45,0.0001062,2]
[348306559,1736439062602,-500.0,0.0001062,2]
[348306560,1736439062611,-500.0,0.0001062,2]
[348306561,1736439062625,-326.84829565,0.0001062,2]
[348306562,1736439062634,-500.0,0.0001062,2]
[348306563,1736439062643,-500.0,0.0001062,2]
[348306564,1736439062652,-857.42,0.0001062,2]
[348306565,1736439062662,-564.85,0.0001062,2]
[348306566,1736439062671,-500.0,0.0001062,2]
[348306567,1736439062681,-500.0,0.0001062,2]
[348306568,1736439062690,-500.0,0.0001062,2]
[348306569,1736439062700,-1031.83,0.0001062,2]
[348306570,1736439062709,-500.0,0.0001062,2]
[348306571,1736439062720,-703.36,0.0001062,2]
[348306572,1736439062734,-500.0,0.0001062,2]
[348306573,1736439062747,-500.0,0.0001062,2]
[348306574,1736439062757,-500.0,0.0001062,2]
[348306575,1736439062766,-500.0,0.0001062,2]
[348306576,1736439062777,-585.49,0.0001062,2]
[348306577,1736439062786,-532.43,0.0001062,2]
[348306578,1736439062799,-793.19,0.0001062,2]
[348306579,1736439062808,-536.33,0.0001062,2]
[348306580,1736439062819,-500.0,0.0001062,2]
[348306581,1736439062829,-500.0,0.0001062,2]
[348306582,1736439062839,-500.0,0.0001062,2]
[348306583,1736439062850,-500.0,0.0001062,2]
[348306584,1736439062861,-547.48,0.0001062,2]
[348306585,1736439062874,-500.0,0.0001062,2]
[348306586,1736439062885,-500.0,0.0001062,2]
[348306587,1736439062895,-574.17,0.0001062,2]
[348306588,1736439062904,-500.0,0.0001062,2]
[348306589,1736439062913,-500.0,0.0001062,2]
[348306590,1736439062922,-1766.45,0.0001062,2]
[348306591,1736439062933,-500.0,0.0001062,2]
[348306592,1736439062945,-500.0,0.0001062,2]
[348306593,1736439062954,-500.0,0.0001062,2]
[348306594,1736439062965,-219.43,0.0001062,2]
[348306595,1736439062974,-500.0,0.0001062,2]
[348306596,1736439062983,-590.91,0.0001062,2]
[348306597,1736439062993,-500.0,0.0001062,2]
[348306598,1736439063002,-928.0,0.0001062,2]
[348306599,1736439063011,-500.0,0.0001062,2]
[348306600,1736439063021,-154.6219113,0.0001062,2]
[348306601,1736439063030,-2492.86,0.0001062,2]
[348306602,1736439063040,-500.0,0.0001062,2]
[348306603,1736439063050,-500.0,0.0001062,2]
[348306604,1736439063060,-500.0,0.0001062,2]
[348306605,1736439063070,-949.48,0.0001062,2]
[348306606,1736439063079,-4505.58,0.0001062,2]
[348306607,1736439063089,-500.0,0.0001062,2]
[348306608,1736439063099,-500.0,0.0001062,2]
[348306609,1736439063109,-1221.62,0.0001062,2]
[348306610,1736439063121,-13981.86,0.0001062,2]
[348306611,1736439063131,-510.47,0.0001062,2]
[348306612,1736439063141,-1250.16,0.0001062,2]
[348306613,1736439063151,-500.0,0.0001062,2]
[348306614,1736439063161,-500.0,0.0001062,2]
[348306615,1736439063171,-500.0,0.0001062,2]
[348306616,1736439063181,-1552.18,0.0001062,2]
[348306617,1736439063191,-500.0,0.0001062,2]
[348306618,1736439063201,-500.0,0.0001062,2]
[348306619,1736439063211,-2326.63,0.0001062,2]
[348306620,1736439063220,-2750.8,0.0001062,2]
[348306621,1736439063230,-500.0,0.0001062,2]
[348306622,1736439063240,-500.0,0.0001062,2]
[348306623,1736439063250,-590.66,0.0001062,2]
[348306624,1736439063260,-500.0,0.0001062,2]
[348306625,1736439063269,-2454.44,0.0001062,2]
[348306626,1736439063279,-2089.08,0.0001062,2]
[348306627,1736439063289,-500.0,0.0001062,2]
[348306628,1736439063299,-4193.81,0.0001062,2]
[348306629,1736439063308,-2002.04,0.0001062,2]
[348306630,1736439063318,-500.0,0.0001062,2]
[348306631,1736439063327,-500.0,0.0001062,2]
[348306632,1736439063337,-500.0,0.0001062,2]
[348306633,1736439063347,-903.41,0.0001062,2]
[348306634,1736439063357,-500.0,0.0001062,2]
[348306635,1736439063366,-500.0,0.0001062,2]
[348306636,1736439063379,-271.90843516,0.0001062,2]
[348306637,1736439063388,-1069.040931,0.0001062,2]
[348306638,1736439063398,-500.0,0.0001062,2]
[348306639,1736439063407,-500.0,0.0001062,2]
[348306640,1736439063417,-744.03,0.0001062,2]
[348306641,1736439063426,-7404.47,0.0001062,2]
[348306642,1736439063492,-500.0,0.0001062,2]
[348306643,1736439063503,-2139.38,0.0001062,2]
[348306644,1736439063513,-4240.67,0.0001062,2]
[348306645,1736439063522,-994.584959,0.0001062,2]
[348306646,1736439063532,-1444.36,0.0001062,2]
[348306647,1736439063541,-500.0,0.0001062,2]
[348306648,1736439063551,-1468.32,0.0001062,2]
[348306649,1736439063560,-872.65,0.0001062,2]
[348306650,1736439063570,-500.0,0.0001062,2]
[348306651,1736439063580,-500.0,0.0001062,2]
[348306652,1736439063589,-3179.44,0.0001062,2]
[348306653,1736439063599,-500.0,0.0001062,2]
[348306654,1736439063609,-2798.97,0.0001062,2]
[348306655,1736439063619,-500.0,0.0001062,2]
[348306656,1736439063629,-501.27,0.0001062,2]
[348306657,1736439063639,-1250.13,0.0001062,2]
[348306658,1736439063648,-500.0,0.0001062,2]
[348306659,1736439063658,-1529.02,0.0001062,2]
[348306660,1736439063667,-527.66,0.0001062,2]
[348306661,1736439063677,-500.0,0.0001062,2]
[348306662,1736439063687,-500.0,0.0001062,2]
[348306663,1736439063697,-500.0,0.0001062,2]
[348306664,1736439063707,-500.0,0.0001062,2]
[348306665,1736439063717,-500.0,0.0001062,2]
[348306666,1736439063728,-500.0,0.0001062,2]
[348306667,1736439063737,-697.28,0.0001062,2]
[348306668,1736439063747,-500.0,0.0001062,2]
[348306669,1736439063757,-573.69,0.0001062,2]
[348306670,1736439063766,-525.88,0.0001062,2]
[348306671,1736439063776,-500.0,0.0001062,2]
[348306672,1736439063785,-5822.91,0.00010621,2]
[348306673,1736439063794,-500.0,0.00010621,2]
[348306674,1736439063805,-1578.54,0.00010621,2]
[348306675,1736439063815,-601.77,0.00010621,2]
[348306676,1736439063824,-925.39,0.00010621,2]
[348306677,1736439063833,-1549.63,0.00010621,2]
[348306678,1736439063842,-2066.95,0.00010621,2]
[348306679,1736439063854,-2295.27,0.00010621,2]
[348306680,1736439063864,-1610.6,0.00010621,2]
[348306681,1736439063875,-3692.16,0.00010621,2]
[348306682,1736439063885,-3067.6,0.00010621,2]
[348306683,1736439063896,-7734.52,0.00010621,2]
[348306684,1736439063905,-5430.17,0.00010621,2]
[348306685,1736439063915,-548.91,0.00010621,2]
[348306686,1736439063924,-1166.01,0.00010621,2]
[348306687,1736439063934,-645.88,0.00010621,2]
[348306688,1736439063943,-500.0,0.00010621,2]
[348306689,1736439063952,-711.37,0.00010621,2]
[348306690,1736439063962,-517.5,0.00010621,2]
[348306691,1736439063972,-500.0,0.00010621,2]
[348306692,1736439063981,-833.88,0.00010621,2]
[348306693,1736439063991,-196.16456758,0.00010621,2]
[348306694,1736439064009,-303.83543242,0.00010621,2]
[348306695,1736439064019,-6698.29,0.00010621,2]
[348306696,1736439064029,-1695.84215603,0.00010621,2]
[348306697,1736439087462,3001.69790892,0.0002,120]
[348306698,1736439262343,753.87,8.219e-05,2]
[348306700,1736439391575,150.0,0.00018068,120]
[348306702,1736439649595,150.0,0.0002,120]
[348306703,1736439740959,154.4,0.0002,120]
[348306704,1736439834469,3000.0,0.000136,30]
[348306755,1736439847240,3000.0,0.000136,30]
[348306809,1736439855564,3000.0,0.000136,30]
[348306810,1736439866511,3000.0,0.000136,30]
[348306811,1736439874372,3000.0,0.000136,30]
[348306812,1736439881650,3000.0,0.000136,30]
[348306813,1736439889948,3000.0,0.000136,30]
[348306814,1736439900942,3000.0,0.000136,30]
[348306815,1736439929739,3389.3,0.000136,30]
[348306816,1736439930775,150.0,0.00017802,120]
[348306817,1736439936333,260.78,8e-05,2]
[348306818,1736439955509,8985.35,6.94e-05,2]
[348306819,1736439955532,4852.21423907,6.94e-05,2]
[348306835,1736440051305,150.0,0.00017929,120]
[348306839,1736440096368,716.17,8.219e-05,2]
[348306840,1736440110781,150.0,0.00017836,120]
[348306864,1736440232151,-281.83,8.592e-05,2]
[348306865,1736440232162,-1000.0,8.809e-05,2]
[348306866,1736440232171,-541.11817391,8.819e-05,2]
[348306867,1736440232221,-305.47653492,8.819e-05,2]
[348306868,1736440232243,-800.0,8.819e-05,2]
[348306869,1736440232255,-16.66248691,8.819e-05,2]
[348306870,1736440232265,-678.4,8.819e-05,2]
[348306871,1736440232274,-300.0,8.843e-05,2]
[348306872,1736440232284,-18012.80751309,8.844e-05,2]
[348306873,1736440232354,-1727.3,8.844e-05,2]
[348306874,1736440232408,-2855.91574988,8.844e-05,2]
[348306875,1736440232420,-1303.97673703,8.844e-05,2]
[348306876,1736440232430,-164.74,8.844e-05,2]
[348306877,1736440232441,-201.28,8.855e-05,2]
[348306878,1736440232451,-68.23703097,8.871e-05,2]
[348306879,1736440232521,-81.76296903,8.871e-05,2]
[348306880,1736440232531,-453.55528964,8.872e-05,2]
[348306946,1736440238000,-1148.08552659,8.872e-05,2]
[348306947,1736440238111,-3099.35918377,8.872e-05,2]
[348306948,1736440238126,-886.47,8.882e-05,2]
[348306949,1736440238136,-250.0,8.906e-05,2]
[348306950,1736440238146,-462.85,9.02e-05,2]
[348306951,1736440238156,-200.0,9.088e-05,2]
[348306952,1736440238167,-250.0,9.24e-05,2]
[348306953,1736440238177,-840.45,9.404e-05,2]
[348306954,1736440238186,-3455.49,9.404e-05,2]
[348306955,1736440238198,-150.0,9.472e-05,2]
[348306956,1736440238208,-436.94,9.478e-05,2]
[348306957,1736440238218,-458.9085,9.697e-05,2]
[348306958,1736440238228,-3218.5532,9.697e-05,2]
[348306959,1736440238237,-500.0,9.697e-05,2]
[348306960,1736440238247,-1385.2816,9.697e-05,2]
[348306961,1736440238257,-1828.1152,9.697e-05,2]
[348306962,1736440238266,-1540.374,9.697e-05,2]
[348306963,1736440238276,-155.0042,9.697e-05,2]
[348306964,1736440238286,-3899.43608865,9.697e-05,2]
[348306965,1736440238301,-45861.04942263,9.698e-05,2]
[348306966,1736440238320,-489.04999834,9.698e-05,2]
[348306967,1736440238351,-1126.32025099,9.698e-05,2]
[348306968,1736440238383,-2328.92412804,9.698e-05,2]
[348306969,1736440238392,-420.0,9.727e-05,2]
[348306970,1736440238402,-192.0,9.758e-05,2]
[348306971,1736440238413,-150.0,9.789e-05,2]
[348306972,1736440238423,-150.0,9.789e-05,2]
[348306973,1736440238434,-1954.05,9.796e-05,2]
[348306974,1736440238444,-842.59317586,9.796e-05,2]
[348306975,1736440238456,-620.62682414,9.796e-05,2]
[348306976,1736440238466,-169.97105266,9.796e-05,2]
[348306977,1736440238478,-769.96894734,9.796e-05,2]
[348306978,1736440238487,-158.27905161,9.796e-05,2]
[348306980,1736440238513,-979.72,9.796e-05,2]
[348306981,1736440238524,-2555.29094839,9.796e-05,2]
[348306982,1736440238534,-5707.14,9.796e-05,2]
[348306983,1736440238546,-6870.46,9.796e-05,2]
[348306984,1736440238555,-1867.10905166,9.796e-05,2]
[348306985,1736440238568,-1949.30094834,9.796e-05,2]
[348306986,1736440238577,-500.0,9.796e-05,2]
[348306987,1736440238587,-993.29,9.796e-05,2]
[348306988,1736440238598,-2572.91,9.796e-05,2]
[348306990,1736440238608,-1812.27,9.796e-05,2]
[348306992,1736440238617,-5875.68,9.796e-05,2]
[348306994,1736440238627,-598.88,9.796e-05,2]
[348306996,1736440238637,-500.0,9.796e-05,2]
[348306998,1736440238647,-1574.76,9.796e-05,2]
[348307000,1736440238656,-500.0,9.796e-05,2]
[348307002,1736440238666,-500.0,9.796e-05,2]
[348307004,1736440238676,-500.0,9.796e-05,2]
[348307006,1736440238685,-1408.87,9.796e-05,2]
[348307008,1736440238694,-314.03905166,9.796e-05,2]
[348307146,1736440240028,-185.96094834,9.796e-05,2]
[348307148,1736440240038,-543.49,9.796e-05,2]
[348307150,1736440240048,-1448.06,9.796e-05,2]
[348307151,1736440240061,-500.0,9.796e-05,2]
[348307154,1736440240072,-292.0730753,9.796e-05,2]
[348307155,1736440240083,-500.0,9.796e-05,2]
[348307157,1736440240093,-666.01,9.796e-05,2]
[348307159,1736440240105,-500.0,9.796e-05,2]
[348307161,1736440240118,-500.0,9.796e-05,2]
[348307163,1736440240130,-1100.33,9.796e-05,2]
[348307165,1736440240142,-500.0,9.796e-05,2]
[348307167,1736440240154,-500.0,9.796e-05,2]
[348307169,1736440240165,-3902.38,9.796e-05,2]
[348307171,1736440240176,-2180.36,9.796e-05,2]
[348307174,1736440240187,-500.0,9.797e-05,2]
[348307175,1736440240198,-500.0,9.797e-05,2]
[348307178,1736440240209,-500.0,9.797e-05,2]
[348307180,1736440240220,-500.0,9.797e-05,2]
[348307181,1736440240231,-500.0,9.797e-05,2]
[348307183,1736440240242,-500.0,9.797e-05,2]
[348307185,1736440240252,-500.0,9.797e-05,2]
[348307188,1736440240263,-500.0,9.797e-05,2]
[348307190,1736440240274,-81.10008086,9.797e-05,2]
[348307193,1736440240302,-418.89991914,9.797e-05,2]
[348307195,1736440240315,-500.0,9.797e-05,2]
[348307197,1736440240325,-500.0,9.797e-05,2]
[348307199,1736440240335,-500.0,9.797e-05,2]
[348307201,1736440240345,-270.13270028,9.797e-05,2]
[348307207,1736440240395,-229.86729972,9.797e-05,2]
[348307209,1736440240405,-500.0,9.797e-05,2]
[348307211,1736440240414,-500.0,9.797e-05,2]
[348307213,1736440240423,-500.0,9.797e-05,2]
[348307215,1736440240433,-500.0,9.797e-05,2]
[348307217,1736440240441,-500.0,9.797e-05,2]
[348307219,1736440240451,-500.0,9.797e-05,2]
[348307221,1736440240461,-500.0,9.797e-05,2]
[348307223,1736440240471,-516.56,9.797e-05,2]
[348307225,1736440240480,-500.0,9.797e-05,2]
[348307227,1736440240489,-500.0,9.797e-05,2]
[348307229,1736440240499,-500.0,9.797e-05,2]
[348307231,1736440240509,-500.0,9.797e-05,2]
[348307233,1736440240518,-500.0,9.797e-05,2]
[348307235,1736440240528,-500.0,9.797e-05,2]
[348307237,1736440240537,-500.0,9.797e-05,2]
[348307238,1736440240546,-500.0,9.797e-05,2]
[348307239,1736440240555,-500.0,9.797e-05,2]
[348307240,1736440240568,-500.0,9.797e-05,2]
[348307241,1736440240577,-500.0,9.797e-05,2]
[348307242,1736440240586,-500.0,9.797e-05,2]
[348307243,1736440240596,-500.0,9.797e-05,2]
[348307244,1736440240606,-500.0,9.797e-05,2]
[348307246,1736440240615,-500.0,9.797e-05,2]
[348307247,1736440240624,-500.0,9.797e-05,2]
[348307250,1736440240634,-500.0,9.797e-05,2]
[348307252,1736440240643,-500.0,9.797e-05,2]
[348307253,1736440240653,-500.0,9.797e-05,2]
[348307255,1736440240662,-500.0,9.797e-05,2]
[348307258,1736440240672,-500.0,9.797e-05,2]
[348307260,1736440240681,-500.0,9.797e-05,2]
[348307261,1736440240690,-500.0,9.797e-05,2]
[348307264,1736440240705,-500.0,9.797e-05,2]
[348307266,1736440240714,-500.0,9.797e-05,2]
[348307268,1736440240726,-500.0,9.797e-05,2]
[348307270,1736440240735,-500.0,9.797e-05,2]
[348307272,1736440240744,-500.0,9.797e-05,2]
[348307274,1736440240754,-500.0,9.797e-05,2]
[348307276,1736440240763,-500.0,9.797e-05,2]
[348307278,1736440240772,-500.0,9.797e-05,2]
[348307280,1736440240781,-500.0,9.797e-05,2]
[348307281,1736440240799,-500.0,9.797e-05,2]
[348307283,1736440240810,-500.0,9.797e-05,2]
[348307285,1736440240819,-500.0,9.797e-05,2]
[348307288,1736440240829,-500.0,9.797e-05,2]
[348307289,1736440240839,-555.88,9.797e-05,2]
[348307291,1736440240849,-500.0,9.797e-05,2]
[348307293,1736440240858,-500.0,9.797e-05,2]
[348307295,1736440240867,-500.0,9.797e-05,2]
[348307297,1736440240877,-500.0,9.797e-05,2]
[348307300,1736440240886,-500.0,9.797e-05,2]
[348307301,1736440240895,-500.0,9.797e-05,2]
[348307303,1736440240905,-500.0,9.797e-05,2]
[348307305,1736440240915,-500.0,9.797e-05,2]
[348307307,1736440240925,-500.0,9.797e-05,2]
[348307309,1736440240935,-500.0,9.797e-05,2]
[348307311,1736440240944,-500.0,9.797e-05,2]
[348307313,1736440240956,-500.0,9.797e-05,2]
[348307316,1736440240966,-500.0,9.797e-05,2]
[348307317,1736440240975,-500.0,9.797e-05,2]
[348307319,1736440240984,-500.0,9.797e-05,2]
[348307321,1736440240994,-500.0,9.797e-05,2]
[348307323,1736440241003,-500.0,9.797e-05,2]
[348307325,1736440241013,-500.0,9.797e-05,2]
[348307327,1736440241022,-500.0,9.797e-05,2]
[348307330,1736440241032,-500.0,9.797e-05,2]
[348307331,1736440241041,-500.0,9.797e-05,2]
[348307334,1736440241051,-500.0,9.797e-05,2]
[348307335,1736440241063,-673.19,9.797e-05,2]
[348307337,1736440241073,-500.0,9.797e-05,2]
[348307339,1736440241082,-500.0,9.797e-05,2]
[348307341,1736440241092,-479.88519476,9.797e-05,2]
[348307344,1736440241102,-500.0,9.797e-05,2]
[348307345,1736440241112,-818.9,9.797e-05,2]
[348307347,1736440241125,-500.0,9.797e-05,2]
[348307349,1736440241135,-500.0,9.797e-05,2]
[348307352,1736440241144,-500.0,9.797e-05,2]
[348307353,1736440241153,-500.0,9.797e-05,2]
[348307355,1736440241165,-636.14,9.797e-05,2]
[348307357,1736440241178,-500.0,9.797e-05,2]
[348307359,1736440241189,-500.0,9.797e-05,2]
[348307361,1736440241199,-500.0,9.797e-05,2]
[348307363,1736440241209,-500.0,9.797e-05,2]
[348307366,1736440241218,-500.0,9.797e-05,2]
[348307368,1736440241229,-500.0,9.797e-05,2]
[348307370,1736440241238,-500.0,9.797e-05,2]
[348307372,1736440241247,-188.18439151,9.797e-05,2]
[348307374,1736440241257,-500.0,9.797e-05,2]
[348307376,1736440241266,-500.0,9.797e-05,2]
[348307378,1736440241276,-500.0,9.797e-05,2]
[348307380,1736440241288,-500.0,9.797e-05,2]
[348307381,1736440241298,-500.0,9.797e-05,2]
[348307383,1736440241309,-500.0,9.797e-05,2]
[348307385,1736440241320,-500.0,9.797e-05,2]
[348307387,1736440241330,-1360.68,9.797e-05,2]
[348307389,1736440241339,-500.0,9.797e-05,2]
[348307391,1736440241349,-1354.32,9.797e-05,2]